Cogmind - Beta 17 @@@ ROGUE MODE // 2026.07.09 @ 19:22:56 Player: IsAway Result: Destroyed by S-10 Pest with Light Assault Rifle Performance ------------- Evolutions (0) 0 Regions Visited (2) 400 Robots Destroyed (11) 55 Value Destroyed (122) 122 Prototype IDs (0) 0 Alien Tech Used (0) 0 Bonus (0) 0 TOTAL SCORE: 577 Bonus ------- None Cogmind --------- Core Integrity 0/250 Matter 300/300 Energy 100/100 System Corruption 0% Temperature Cool (0) Movement Rolling (100) Location -10/Mines Parts ------- > --- POWER (1) -------- (None) > --- PROPULSION (2) --- Compact Wheel > --- UTILITY (2) ------ Small Storage Unit Signal Interpreter > --- WEAPON (2) ------- Hammer > --- INVENTORY (8) ---- High-capacity Matter Pod (200) High-capacity Matter Pod (200) High-capacity Matter Pod (200) Seismic Detector Targeting Computer Hacking Suite Assault Rifle Assault Rifle Peak State ------------ > --- POWER ------------ Light Ion Engine > --- PROPULSION ------- Light Treads Light Treads > --- UTILITY ---------- Small Storage Unit Signal Interpreter > --- WEAPON ----------- Assault Rifle Hammer > --- INVENTORY -------- Hover Unit Hover Unit High-capacity Matter Pod Seismic Detector Targeting Computer Hacking Suite Assault Rifle Mining Laser [Rating: 8] Favorites ----------- Power Light Ion Engine Engine Light Ion Engine Propulsion Light Treads Treads Light Treads Wheel Wheel Hover Unit Hover Unit Utility Small Storage Unit Device Seismic Detector Storage Small Storage Unit Processor Signal Interpreter Weapon Assault Rifle Ballistic Gun Assault Rifle Launcher Rocket Launcher Special Weapon Mining Laser Impact Weapon Hammer Build | -11 -10 -10 ------- Run | Yrd Mat Min Slots Evolved . | . . . Power . | . . . Propulsion . | . . . Utility . | . . . Weapon . | . . . Parts Attached 15 | 7 2 6 Power 1 | 1 . . Engine 1 | 1 . . Core . | . . . Reactor . | . . . Propulsion 6 | 2 . 4 Treads 2 | 2 . . Leg . | . . . Wheel 2 | . . 2 Hover 2 | . . 2 Flight . | . . . Utility 3 | 2 1 . Device 1 | 1 . . Storage 1 | 1 . . Processor 1 | . 1 . Hackware . | . . . Protection . | . . . Artifact . | . . . Weapon 5 | 2 1 2 Energy Gun . | . . . Energy Cannon . | . . . Ballistic Gun 2 | 2 . . Ballistic Cannon . | . . . Launcher 1 | . . 1 Special Weapon 1 | . . 1 Impact Weapon 1 | . 1 . Slashing Weapon . | . . . Piercing Weapon . | . . . Special Melee Weapon . | . . . Unidentified Prototypes . | . . . Parts Lost 6 | . . 6 Power 1 | . . 1 Propulsion 3 | . . 3 Utility . | . . . Weapon 2 | . . 2 Highest Loss Streak 5 | . . 5 To Critical Strikes . | . . . Average Backups 4 | . 3 6 Power . | . . . Propulsion . | . 1 . Utility 2 | . 1 4 Weapon . | . . 2 Tool/Special . | . . . Unused Backups 5 | . . 5 Power . | . . . Propulsion . | . . . Utility 5 | . . 5 Weapon . | . . . Tool/Special . | . . . Average Slot Usage (%) 89 | . 100 71 Engine 10 | . 14 3 Treads 17 | . 28 1 Wheel 4 | . . 11 Hover 2 | . . 7 Device 7 | . 12 . Storage 14 | . 14 14 Processor 6 | . 1 14 Ballistic Gun 16 | . 26 1 Launcher 1 | . . 3 Special Weapon 1 | . . 4 Impact Weapon 4 | . 1 9 Peak Build Rating 8 | 7 8 8 Average Rating 6 | 4 7 5 On Entrance 5 | . 7 8 Avg Prop Armor Cover (%) . | . . . Naked Turns . | . . . Heaviest Build 13 | 13 13 13 Greatest Support 40 | 40 40 40 Greatest Overweight (x) 2 | . . 2 Average Overweight (x) . | . . . Largest Inventory Capacity 8 | 8 8 8 Average Capacity 7 | 7 8 8 Most Carried 8 | . 8 8 Average Carried 4 | . 3 6 Final Capacity 8 | 8 8 8 Final Carried 8 | . 8 8 Class Distribution -------------------- 100% | Mutant Dominant Class ---------------- Mutant | -10/Materials Mutant | -10/Mines Resources | -11 -10 -10 ----------- Run | Yrd Mat Min Matter Collected 755 | 155 228 372 Remotely . | . . . Salvage Created 234 | 19 68 147 Parts 21 | 2 8 11 Haulers Intercepted . | . . . Recyclers Shooed . | . . . Parts Field Recycled . | . . . Retrieved Matter . | . . . Parts Self-Destructed . | . . . Prevented . | . . . Parts Restored . | . . . Kills | -11 -10 -10 ------- Run | Yrd Mat Min Combat Hostiles Destroyed 6 | . 1 5 Guns 1 | . 1 . AOE 3 | . . 3 Classes Destroyed 7 | 1 3 3 Builder 3 | . 1 2 Tunneler 3 | 1 1 1 Recycler 1 | . . 1 Operator 1 | . 1 . Swarmer 2 | . . 2 Grunt 1 | . 1 . Assembled 3 | . . 3 Best Kill Streak 3 | 1 2 3 Combat Bots Only 3 | . 1 3 Max Kills in Single Turn 2 | 1 1 2 Gunslinging . | . . . Exploded 2 | . . 2 Melee . | . . . Uniques/NPCs Destroyed . | . . . Combat | -11 -10 -10 -------- Run | Yrd Mat Min Hostile Shots Fired 43 | . 5 38 Missed 12 | . 3 9 Hits 31 | . 2 29 Projectile 31 | . 2 29 AOE 10 | . . 10 Damage Taken 557 | . 23 534 Core 250 | . . 250 Absorbed by Shields . | . . . Core Remaining (%) 100 | 100 . . Volleys Fired 24 | 4 17 3 Largest 2 | 2 2 1 Hottest 40 | 40 40 33 Shots Fired 45 | 8 34 3 Gun 42 | 8 34 . Cannon . | . . . Launcher 3 | . . 3 Special . | . . . Kinetic 42 | 8 34 . Thermal . | . . . Explosive 3 | . . 3 Electromagnetic . | . . . Robot Hit Streak 7 | 2 7 5 Robot Miss Streak 8 | 3 8 1 Penetration Max . | . . . Secondary Targets . | . . . Shots Hit Robots 33 | 4 15 14 Core Hits 14 | 2 5 7 Critical Kills . | . . . Critical Parts Destroyed 2 | . . 2 Critical Strikes 2 | . . 2 Smash 2 | . . 2 Melee Attacks 27 | . 7 20 Impact 27 | . 7 20 Slashing . | . . . Piercing . | . . . Sneak Attacks 6 | . . 6 Combat Hostiles . | . . . Follow-up Attacks . | . . . Damage Inflicted 824 | 47 207 570 Guns 239 | 47 192 . Cannons . | . . . Explosions 149 | . . 149 Melee 421 | . . 421 Ramming 15 | . 15 . Kinetic 239 | 47 192 . Thermal . | . . . Explosive 149 | . . 149 Electromagnetic . | . . . Impact 421 | . . 421 Slashing . | . . . Piercing . | . . . Highest Corruption . | . . . Average Corruption . | . . . Corruption Purged . | . . . Corruption Blocked . | . . . Overload Shots . | . . . Overflow Damage 83 | . . 83 Projectiles . | . . . Explosions . | . . . Melee 83 | . . 83 Knockbacks 3 | . 2 1 Impact 3 | . 2 1 Kinetic . | . . . Secondary . | . . . Self-Inflicted Damage 27 | . . 27 Shots 1 | . . 1 Rammed 1 | . 1 . Targets Rammed 2 | . 2 . Kicked . | . . . Crushed 1 | . 1 . Highest Temperature 18 | . . 18 Average Temperature 15 | . . 15 Received Heat Transfer 32 | . 12 20 Siege Activations . | . . . Martial Activations . | . . . Shielding Activations . | . . . Robots Disrupted . | . . . Combat Hostiles . | . . . Robots Corrupted 2 | . . 2 Combat Hostiles 2 | . . 2 Parts Fried 5 | . . 5 Impact Corruptions 6 | . . 6 Robots Melted . | . . . Combat Hostiles . | . . . Parts Melted . | . . . Heat Transferred . | . . . Parts Sabotaged . | . . . Parts Stolen . | . . . Parts Stripped . | . . . Power Chain Reactions . | . . . Alert | -11 -10 -10 ------- Run | Yrd Mat Min Maximum Alert Level . | . . . Low Security (%) 100 | 100 100 100 Level 1 . | . . . Level 2 . | . . . Level 3 . | . . . Level 4 . | . . . Level 5 . | . . . High Security . | . . . Max Security . | . . . Peak Influence 32 | 5 30 32 Initial . | . . . Average 2 | . 2 2 Influence Increases 172 | 5 63 104 Destroy 0b10 Robot/C 60 | . 20 40 Destroy 0b10 Robot/NC 40 | 5 15 20 Destroy Leader 20 | . 10 10 Disable Machine 15 | . 15 . Destroy Structure 22 | . 3 19 Partial Spotted 15 | . . 15 Influence Decreases 140 | 5 63 72 Time Decay 123 | 5 63 55 Lost Part 17 | . . 17 Squads Dispatched 2 | . 2 . Investigation . | . . . Extermination . | . . . Reinforcement 2 | . 2 . Assault . | . . . Garrison . | . . . Intercept . | . . . Searches Triggered . | . . . Construction Impeded . | . . . Haulers Reinforced . | . . . Active Scanning Responses . | . . . Cargo Convoy Interrupts . | . . . Stealth | -11 -10 -10 --------- Run | Yrd Mat Min Distress Signals 1 | . 1 . Communications Jammed . | . . . Distress Signals . | . . . Times Spotted 26 | . 7 19 Peak Tracking Total 17 | . 3 17 Tactical Retreats . | . . . Traps | -11 -10 -10 ------- Run | Yrd Mat Min Traps Triggered . | . . . Indirectly . | . . . Trap Hack Attempts . | . . . Triggered . | . . . Disarmed . | . . . Reprogrammed . | . . . Reused . | . . . Traps Extracted . | . . . Installed . | . . . Triggered . | . . . Machines | -11 -10 -10 ---------- Run | Yrd Mat Min Machines Disabled 1 | . 1 . Max in Single Turn 1 | . 1 . Machines Repaired . | . . . Machines Dismantled . | . . . Machines Sabotaged . | . . . Overloaded Fab Kills . | . . . Hacking | -11 -10 -10 --------- Run | Yrd Mat Min Machines Accessed 2 | . 2 . Terminals 2 | . 2 . Fabricators . | . . . Repair Stations . | . . . Recycling Units . | . . . Scanalyzers . | . . . Garrison Access . | . . . Total Hacks 6 | . 6 . Successful 1 | . 1 . Failed 5 | . 5 . Catastrophic 1 | . 1 . Database Lockouts . | . . . Manual . | . . . Terminals 6 | . 6 . Fabricators . | . . . Repair Stations . | . . . Recycling Units . | . . . Scanalyzers . | . . . Garrison Access . | . . . Terminal Hacks 1 | . 1 . Branch Access Points 1 | . 1 . Fabricator Hacks . | . . . Repair Station Hacks . | . . . Recycling Unit Hacks . | . . . Scanalyzer . | . . . Garrison Access Hacks . | . . . Unauthorized Hacks . | . . . Terminals . | . . . Fabricators . | . . . Repair Stations . | . . . Recycling Units . | . . . Scanalyzers . | . . . Garrison Access . | . . . Data Cores Recovered . | . . . Used . | . . . Hacking Detections 2 | . 2 . Full Trace Events . | . . . Feedback Events . | . . . Feedback Blocked . | . . . Robot Schematics Acquired . | . . . Robots Built . | . . . Authchips . | . . . Time . | . . . Total Robot Build Rating . | . . . Part Schematics Acquired . | . . . Parts Built . | . . . Authchips . | . . . Time . | . . . Total Part Build Rating . | . . . Part Studies Acquired . | . . . Parts Repaired . | . . . Time . | . . . Parts Recycled . | . . . Recycled Matter . | . . . Retrieved Matter . | . . . Retrieved Components . | . . . Parts Scanalyzed . | . . . Part Schematics Acquired . | . . . Parts Damaged . | . . . Bothacking | -11 -10 -10 ------------ Run | Yrd Mat Min Used RIF Installer . | . . . Robots Hacked . | . . . Non-combat . | . . . Combat . | . . . Robot Hacks Applied . | . . . Relay Couplers Released . | . . . Fabnet Peak Effective % . | . . . Robots Rewired . | . . . Allies Hacked . | . . . Hacks Repelled . | . . . Allies | -11 -10 -10 -------- Run | Yrd Mat Min Total Allies . | . . . Largest Group . | . . . Highest-Rated Group . | . . . Highest-Rated Ally . | . . . Total Orders . | . . . Ally Attacks . | . . . Total Damage . | . . . Kills . | . . . Allies Corrupted . | . . . Allies Melted . | . . . Intel | -11 -10 -10 ------- Run | Yrd Mat Min Active Infowar (turns) 720 | 6 714 . Seismic 720 | 6 714 . Robot Analysis Total . | . . . Derelict Logs Recovered 2 | . . 2 Drone Launches . | . . . Drone Recoveries . | . . . Exploration | -11 -10 -10 ------------- Run | Yrd Mat Min Turns Passed 1374 | 70 810 494 Spaces Moved 812 | 34 411 367 Core 23 | 5 . 18 Treads 441 | 29 411 1 Legs . | . . . Wheels 288 | . . 288 Hover 60 | . . 60 Flight . | . . . Fastest Speed 50 | 50 160 56 Average Speed 125 | 143 160 85 Slowest Speed 160 | 160 160 160 Overloaded Moves . | . . . Propulsion Burnouts . | . . . Robots Hopped . | . . . Potential Cave-ins . | . . . Cave-ins Triggered . | . . . Exploration Rate (%) 36 | 4 51 54 Regions Visited 2 Branch Regions 1 Pre-discovered Areas . | . . . Known Exits Taken 1 | . 1 . Unknown Exits Taken 1 | 1 . . Scrap Searched . | . . . Spaces Dug 2 | . 2 . Terrain Destroyed 22 | . 2 20 Melee 2 | . 2 . Projectile . | . . . AOE 20 | . . 20 Terrain Rammed . | . . . Walls Destroyed . | . . . Machines Disabled . | . . . Actions | -11 -10 -10 --------- Run | Yrd Mat Min Total 1067 | 44 516 507 Wait 175 | . 70 105 Move 810 | 33 410 367 Hop . | . . . Pick Up 10 | . 7 3 Fast Attach 10 | 7 1 2 Attach 1 | . . 1 Detach 1 | . 1 . Swap 5 | . 1 4 Drop 2 | . . 2 Fire 24 | 4 17 3 Melee 27 | . 7 20 Ram . | . . . Kick . | . . . Crush 2 | . 2 . Escape Stasis . | . . . Rewire . | . . . Trap . | . . . Miscellaneous . | . . . Route ------- -11/Scrapyard -10/Materials (discovered 2 exits: *Mat / *Min) -10/Mines (discovered 1 exit: *Mat) History --------- Turn | Location | Event 5 | -11/Scrapyard | Discovered new exit (range 16) 71 | -11/Scrapyard | Entered Materials 72 | -10/Materials | Met a group of wandering Federalists 314 | -10/Materials | Build established: Mutant 565 | -10/Materials | Discovered new exit (range 8) 814 | -10/Materials | Identified exit to Mines 881 | -10/Materials | Entered Mines 888 | -10/Mines | Received a Rocket Launcher from a helpful Derelict 896 | -10/Mines | Assembled infested the area 902 | -10/Mines | Learned Materials interactive machine intel 902 | -10/Mines | Learned 2 Materials zone layouts 1028 | -10/Mines | Core integrity fell below 50% 1053 | -10/Mines | Lost 5 parts (1p2n2w) 1232 | -10/Mines | Discovered new exit (range 10) 1239 | -10/Mines | Identified exit to Materials 1356 | -10/Mines | Core integrity fell below 20% 1375 | -10/Mines | Destroyed by S-10 Pest with Light Assault Rifle Last Messages --------------- Acquired 51 matter. Acquired Com. Wheel. Extracted 64 matter. Acquired Hcp. Matter Pod. Extracted 64 matter. Acquired Hcp. Matter Pod. Destroyed Flight Unit. S-10 Pest system corrupted by crushing effect. S-10 Pest system terminally corrupted. Lgt. Ion Engine fried. Lgt. Assault Rifle fried. K-01 Serf collects debris. Wheel destroyed. S-10 Pest suffers critical hit (Smash). Destroyed Lgt. Ion Engine. Destroyed Flight Unit. S-10 Pest system corrupted by crushing effect. S-10 Pest system terminally corrupted. K-01 Serf collects debris. Map ----- +----------------------------------------------------+ | ?????????????????????????????????????????????????? | | ?????????????????????????????????????????????????? | | ?????????????????????????????????????????????????? | | ?????????????????????????????????????????????????? | | ?????????????????????????????????????????????????? | | ?????????????????????????????????????????????????? | | ?????????????????????????????????????????????????? | | ?????????????????????????????????????????????????? | | ?????????????????????????????????????????????????? | | ?????????????????????????????????????????????????? | | ?????????????????????? ?????????????????????????? | | ?????????????????????# ?????????????????????????? | | ?????????????????????# ?????????????????????????? | | ?????????????????????# t?????????????????????????? | | ????????????????????## ##???????????????????????? | | ???????????????????## ##??????????????????????? | | ???????????????????# ###????????????????????? | | ??????????????????? ##???????????????????? | | ???????????????????? #???????????????????? | | ????????????????????? #???????????????????? | | ?????????????????????# ##??????????????????? | | ?????????????????????# #??????????????????? | | ?????????????????????# #??????????????????? | | ??????????????????????# #???????????????????? | | ?????????????????######k #????????????????????? | | ????????????????## ##% @s#?????????????????????? | | ????????????????# #?????????????????????? | | ????????????????# #?????????????????????? | | ????????????????## ##????????????????????? | | ?????????????????# #????????????????????? | | ?????????????????# t #????????????????????? | | ????????????????## ##????????????????????? | | ????????????????# ##?????????????????????? | | ???????????????## ######??????????????????????? | | ?????????????### ##???????????##??????????????? | | ????????????## #??????????? ###????????????? | | ????????????# #?????????? ?????????????? | | ????????????# ##????????# """?????????????? | | ????????????## ##??????# """ ? ??????????? | | ?????########## ####### """ #??????????? | | ?????# ### #???????????? | | ?????# !!!! #### < #????????????? | | ?????# !!! #?????????????? | | ?????# !!!! ## #?????????????? | | ?????# !! #### ##??? ##?????????????? | | ?????# #??## #??????##??????????????? | | ?????## #???## #??????????????????????# | | ??????########????### ##??????##?????????????## | | ????????????????????# ###???????# #########????# | | ???????????????###### ########???# ## ##???## | +----------------------------------------------------+ Best States ------------- Heat Dissipation 25 Energy Generation 10 Energy Capacity 125 Matter Stores 300 Matter Capacity 300 Sight Range 16 Terrain Scan Density 10 Evasion (%) 53 Recoil Reduction 2 Item Schematics ----------------- None Robot Schematics ------------------ None Fabricated ------------ Nothing Repaired ---------- Nothing Studied --------- None Alien Tech Used ----------------- None Achievements -------------- None Challenges ------------ None Game ------ Seed ConcussiveSpectralExpander Manual? 0 Play Time 00:15:25 Cumulative 17.7 hours Start 2026.07.09 @ 19:10:15 End 2026.07.09 @ 19:22:56 Sessions 1 Manual Loads 0 Difficulty Rogue Special Mode None Game No. 25 Rogue 25 Adventurer 0 Explorer 0 Win Type - Total 0 Types 0/0/0/0/0/0/0/0/0/0 Lore% 18 Gallery% 15 Achievement% 14 Wizard Run 0 Options --------- Layout 1 ASCII 0 Keyboard 0 Movement Mouse Keybinds 0 Fullscreen 1 Font 18/SmallcapsGlow Map View 51x41 Zoom Use 0% Tactical HUD 0 Map Filters NONE Filters NONE Steam 1 RUN: 0c4ddc5b-2f0f-42dd-aa71-0f3f78841a4b